[Event "Czech-ch U18-20 Open 2022"]
[Site "Spindleruv Mlyn"]
[Date "2022.03.13"]
[Round "4.1"]
[White "Mica, Marek"]
[Black "Stalmach, Richard"]
[Result "1/2-1/2"]
[ECO "E63"]
[WhiteElo "2272"]
[BlackElo "2302"]
[Annotator "ChessBase"]
[PlyCount "132"]
[EventDate "2022.03.10"]
[EventType "tourn"]
[EventCountry "CZE"]
[SourceTitle "playchess.com"]
[Source "ChessBase"]
[SourceQuality "1"]
[TimeControl "40/5400+30:1800+30"]

1. d4 {[%emt 0:00:04]} Nf6 {[%emt 0:00:09]} 2. c4 {[%emt 0:00:08]} g6 {[%emt 0:00:05]} 3. Nf3 {[%emt 0:00:05]} Bg7 {[%emt 0:00:07]} 4. g3 {[%emt 0:00:07]} O-O {[%emt 0:00:06]} 5. Bg2 {[%emt 0:00:04]} d6 {[%emt 0:00:05]} 6. O-O {[%emt 0:00:06]} Nc6 {[%emt 0:00:04]} 7. Nc3 {[%emt 0:00:09]} a6 {[%emt 0:00:08]} 8. b3 {[%emt 0:00:09]} Rb8 {[%emt 0:00:14]} 9. Nd5 {[%emt 0:00:33]} b5 {[%emt 0:06:14]} 10. Nxf6+ {[%emt 0:04:32]} Bxf6 {[%emt 0:01:36]} 11. Bh6 {[%emt 0:01:32]} Re8 {[%emt 0:00:52]} 12. Rc1 {[%emt 0:02:53]} e5 {[%emt 0:07:06]} 13. dxe5 {[%emt 0:10:21]} Nxe5 {[%emt 0:00:43]} 14. Nxe5 {[%emt 0:02:21]} Bxe5 {[%emt 0:06:09]} 15. Qd2 {[%emt 0:06:29]} Be6 {[%emt 0:05:49]} 16. cxb5 {[%emt 0:02:20]} axb5 {[%emt 0:00:48]} 17. Bf4 {[%emt 0:00:59]} Bf6 {[%emt 0:16:55]} 18. Bc6 {[%emt 0:03:37]} Bd7 {[%emt 0:02:48]} 19. Qd3 {[%emt 0:05:52]} Rb6 {[%emt 0:02:20]} 20. Bxd7 {[%emt 0:00:40]} Qxd7 {[%emt 0:00:04]} 21. Rc2 {[%emt 0:01:42]} Qe7 {[%emt 0:10:26]} 22. Rd1 {[%emt 0:02:07]} b4 {[%emt 0:02:07]} 23. h4 {[%emt 0:10:35]} h5 {[%emt 0:05:57]} 24. Qc4 {[%emt 0:05:26]} Rc8 {[%emt 0:06:43]} 25. Rd5 {[%emt 0:01:54]} Qe6 {[%emt 0:02:02]} 26. Kg2 {[%emt 0:05:06]} Ra8 {[%emt 0:01:10]} 27. e4 {[%emt 0:07:59]} Bc3 {[%emt 0:03:21]} 28. Bd2 {[%emt 0:17:35]} c6 {[%emt 0:07:20]} 29. Rd3 {[%emt 0:00:15]} Qxc4 {[%emt 0:02:11]} 30. bxc4 {[%emt 0:00:05]} Be5 {[%emt 0:00:02]} 31. f4 {[%emt 0:01:31]} Bg7 {[%emt 0:00:35]} 32. Rxd6 {[%emt 0:01:20]} Rba6 {[%emt 0:00:32]} 33. Bxb4 {[%emt 0:03:46]} Bf8 {[%emt 0:00:05]} 34. c5 {[%emt 0:00:27]} Rxa2 {[%emt 0:07:01]} 35. Rxa2 {[%emt 0:00:37]} Rxa2+ {[%emt 0:00:02]} 36. Kf3 {[%emt 0:01:46]} Rb2 {[%emt 0:00:04]} 37. Rd4 {[%emt 0:00:25]} Rb3+ {[%emt 0:00:04]} 38. Kg2 {[%emt 0:00:23]} Rb2+ {[%emt 0:00:03]} 39. Kh3 {[%emt 0:01:27]} Rc2 {[%emt 0:00:13]} 40. Rd8 {[%emt 0:01:27]} Rc4 {[%emt 0:07:22]} 41. Ba5 {[%emt 0:05:27]} Rxe4 {[%emt 0:12:36]} 42. Bc7 {[%emt 0:03:03]} Kg7 {[%emt 0:00:22]} 43. Be5+ {[%emt 0:02:18]} f6 {[%emt 0:00:03]} 44. Rd7+ {[%emt 0:04:35]} Kg8 {[%emt 0:01:22]} 45. Bxf6 {[%emt 0:04:48]} Re2 {[%emt 0:05:25]} 46. Rc7 {[%emt 0:02:30]} Re6 {[%emt 0:04:49]} 47. Bd4 {[%emt 0:00:43]} Be7 {[%emt 0:01:44]} 48. Kg2 {[%emt 0:01:02]} Kf8 {[%emt 0:00:10]} 49. Kf3 {[%emt 0:00:37]} Ke8 {[%emt 0:00:08]} 50. Ra7 {[%emt 0:02:20]} Re1 {[%emt 0:00:08]} 51. Bf2 {[%emt 0:01:46]} Rf1 {[%emt 0:00:41]} 52. Ra8+ {[%emt 0:00:43]} Kf7 {[%emt 0:00:16]} 53. Kg2 {[%emt 0:00:45]} Rc1 {[%emt 0:00:29]} 54. Ra7 {[%emt 0:01:45]} Kf8 {[%emt 0:02:39]} 55. Rc7 {[%emt 0:03:07]} Bxc5 {[%emt 0:00:06]} 56. Rxc6 {[%emt 0:00:09]} Be3 {[%emt 0:00:03]} 57. Rxc1 {[%emt 0:00:48]} Bxc1 {[%emt 0:00:05]} 58. Kf3 {[%emt 0:00:05]} Kf7 {[%emt 0:00:02]} 59. Ke4 {[%emt 0:00:12]} Ke6 {[%emt 0:00:10]} 60. Bb6 {[%emt 0:01:21]} Ba3 {[%emt 0:00:08]} 61. Bc7 {[%emt 0:00:40]} Bb4 {[%emt 0:00:10]} 62. Bb8 {[%emt 0:00:42]} Be1 {[%emt 0:00:12]} 63. Ke3 {[%emt 0:00:39]} Bxg3 {[%emt 0:01:38]} 64. f5+ {[%emt 0:00:17]} Kxf5 {[%emt 0:00:03]} 65. Bxg3 {[%emt 0:00:08]} g5 {[%emt 0:00:08]} 66. hxg5 {[%emt 0:00:10]} Kxg5 {[%emt 0:00:05]} 1/2-1/2

[Event "Czech-ch U18-20 Open 2022"]
[Site "Spindleruv Mlyn"]
[Date "2022.03.13"]
[Round "4.2"]
[White "Kusa, Jakub"]
[Black "Lajbl, Jan"]
[Result "1-0"]
[ECO "D30"]
[WhiteElo "2298"]
[BlackElo "2218"]
[Annotator "ChessBase"]
[PlyCount "129"]
[EventDate "2022.03.10"]
[EventType "tourn"]
[EventCountry "CZE"]
[SourceTitle "playchess.com"]
[Source "ChessBase"]
[SourceQuality "1"]
[TimeControl "40/5400+30:1800+30"]

1. d4 {[%emt 0:00:03]} d5 {[%emt 0:00:02]} 2. c4 {[%emt 0:00:08]} e6 {[%emt 0:00:03]} 3. Nf3 {[%emt 0:00:12]} a6 {[%emt 0:00:39]} 4. g3 {[%emt 0:02:09]} dxc4 {[%emt 0:00:57]} 5. Bg2 {[%emt 0:01:18]} c5 {[%emt 0:00:44]} 6. O-O {[%emt 0:01:44]} cxd4 {[%emt 0:00:24]} 7. Qxd4 {[%emt 0:00:24]} Qxd4 {[%emt 0:00:06]} 8. Nxd4 {[%emt 0:00:08]} e5 {[%emt 0:00:24]} 9. Nc2 {[%emt 0:02:39]} Nc6 {[%emt 0:04:11]} 10. Nd2 {[%emt 0:10:36]} Be6 {[%emt 0:00:57]} 11. Ne3 {[%emt 0:03:15]} c3 {[%emt 0:04:01]} 12. bxc3 {[%emt 0:00:13]} O-O-O {[%emt 0:05:07]} 13. Ndc4 {[%emt 0:05:23]} f6 {[%emt 0:02:03]} 14. Rb1 {[%emt 0:03:22]} Bc5 {[%emt 0:13:05]} 15. Nb6+ {[%emt 0:04:28]} Bxb6 {[%emt 0:01:12]} 16. Rxb6 {[%emt 0:04:52]} Kc7 {[%emt 0:01:43]} 17. Rb2 {[%emt 0:00:36]} Nge7 {[%emt 0:02:31]} 18. Bd2 {[%emt 0:03:37]} Nd5 {[%emt 0:16:52]} 19. c4 {[%emt 0:02:50]} Nxe3 {[%emt 0:02:57]} 20. Bxe3 {[%emt 0:00:11]} Rb8 {[%emt 0:06:28]} 21. Bd5 {[%emt 0:02:59]} Rhe8 {[%emt 0:06:42]} 22. Rfb1 {[%emt 0:02:51]} f5 {[%emt 0:11:02]} 23. Ba7 {[%emt 0:06:27]} Nxa7 {[%emt 0:03:09]} 24. Rxb7+ {[%emt 0:00:08]} Rxb7 {[%emt 0:00:17]} 25. Rxb7+ {[%emt 0:00:06]} Kd6 {[%emt 0:00:44]} 26. Bxe6 {[%emt 0:01:27]} Rxe6 {[%emt 0:04:56]} 27. Rxa7 {[%emt 0:00:07]} Re7 {[%emt 0:01:18]} 28. Rxa6+ {[%emt 0:01:15]} Kc5 {[%emt 0:00:03]} 29. Ra4 {[%emt 0:00:27]} f4 {[%emt 0:01:48]} 30. Kg2 {[%emt 0:00:45]} fxg3 {[%emt 0:01:07]} 31. hxg3 {[%emt 0:00:27]} e4 {[%emt 0:00:38]} 32. g4 {[%emt 0:01:33]} Rd7 {[%emt 0:02:19]} 33. Kg3 {[%emt 0:02:35]} Rf7 {[%emt 0:00:30]} 34. e3 {[%emt 0:04:48]} Rf3+ {[%emt 0:00:36]} 35. Kg2 {[%emt 0:00:11]} Rf7 {[%emt 0:00:10]} 36. Ra8 {[%emt 0:02:14]} Kxc4 {[%emt 0:00:53]} 37. Rd8 {[%emt 0:00:09]} Re7 {[%emt 0:04:50]} 38. Rd4+ {[%emt 0:00:16]} Kc5 {[%emt 0:00:39]} 39. a4 {[%emt 0:00:18]} g6 {[%emt 0:01:04]} 40. a5 {[%emt 0:01:27]} Kb5 {[%emt 0:01:58]} 41. Rd5+ {[%emt 0:30:31]} Kc6 {[%emt 0:02:10]} 42. Rd2 {[%emt 0:00:00]} Ra7 {[%emt 0:03:40]} 43. Ra2 {[%emt 0:00:00]} Ra6 {[%emt 0:01:28]} 44. g5 {[%emt 0:00:00]} Kb7 {[%emt 0:12:00]} 45. Kg3 {[%emt 0:00:00]} Re6 {[%emt 0:00:50]} 46. Rb2+ {[%emt 0:00:00]} Ka7 {[%emt 0:00:45]} 47. Kf4 {[%emt 0:00:00]} Re7 {[%emt 0:01:59]} 48. Rb6 {[%emt 0:00:00]} Rf7+ {[%emt 0:02:34]} 49. Rf6 {[%emt 0:00:00]} Re7 {[%emt 0:00:03]} 50. a6 {[%emt 0:00:00]} Ka8 {[%emt 0:01:23]} 51. f3 {[%emt 0:00:00]} exf3 {[%emt 0:00:43]} 52. Kxf3 {[%emt 0:00:00]} Re5 {[%emt 0:03:55]} 53. Kf4 {[%emt 0:00:00]} Ra5 {[%emt 0:00:51]} 54. e4 {[%emt 0:00:00]} Ka7 {[%emt 0:02:41]} 55. Rf7+ {[%emt 0:00:00]} Kxa6 {[%emt 0:00:54]} 56. Rxh7 {[%emt 0:00:00]} Kb5 {[%emt 0:00:45]} 57. Rf7 {[%emt 0:00:00]} Kc4 {[%emt 0:02:11]} 58. Rf6 {[%emt 0:00:00]} Ra1 {[%emt 0:00:20]} 59. Rxg6 {[%emt 0:00:00]} Kd4 {[%emt 0:00:11]} 60. Rd6+ {[%emt 0:00:00]} Kc5 {[%emt 0:00:06]} 61. Rd2 {[%emt 0:00:00]} Rf1+ {[%emt 0:00:50]} 62. Ke5 {[%emt 0:00:00]} Rg1 {[%emt 0:00:18]} 63. Rc2+ {[%emt 0:00:00]} Kb6 {[%emt 0:00:05]} 64. Kf6 {[%emt 0:00:00]} Rg2 {[%emt 0:00:04]} 65. Rxg2 {[%emt 0:43:51]} 1-0

[Event "Czech-ch U18-20 Open 2022"]
[Site "Spindleruv Mlyn"]
[Date "2022.03.13"]
[Round "4.4"]
[White "Frank, Adam"]
[Black "Gloser, David"]
[Result "1-0"]
[ECO "B70"]
[WhiteElo "2270"]
[BlackElo "2238"]
[Annotator "ChessBase"]
[PlyCount "87"]
[EventDate "2022.03.10"]
[EventType "tourn"]
[EventCountry "CZE"]
[SourceTitle "playchess.com"]
[Source "ChessBase"]
[SourceQuality "1"]
[TimeControl "40/5400+30:1800+30"]

1. e4 {[%emt 0:00:02]} c5 {[%emt 0:00:05]} 2. Nf3 {[%emt 0:00:03]} d6 {[%emt 0:00:05]} 3. d4 {[%emt 0:00:03]} cxd4 {[%emt 0:00:05]} 4. Nxd4 {[%emt 0:00:02]} Nf6 {[%emt 0:00:07]} 5. Nc3 {[%emt 0:00:02]} g6 {[%emt 0:00:07]} 6. Be2 {[%emt 0:00:05]} Bg7 {[%emt 0:00:45]} 7. O-O {[%emt 0:00:06]} O-O {[%emt 0:01:48]} 8. Re1 {[%emt 0:00:04]} Nc6 {[%emt 0:02:22]} 9. Nb3 {[%emt 0:00:04]} a6 {[%emt 0:02:39]} 10. Bf1 {[%emt 0:00:28]} b5 {[%emt 0:06:47]} 11. Bg5 {[%emt 0:00:05]} Re8 {[%emt 0:10:37]} 12. a4 {[%emt 0:08:02]} b4 {[%emt 0:05:59]} 13. Nd5 {[%emt 0:00:05]} Nxd5 {[%emt 0:01:58]} 14. exd5 {[%emt 0:00:05]} Ne5 {[%emt 0:01:55]} 15. Qd2 {[%emt 0:13:04]} Rb8 {[%emt 0:07:16]} 16. Re4 {[%emt 0:13:30]} Qc7 {[%emt 0:05:56]} 17. Rxb4 {[%emt 0:17:34]} Rxb4 {[%emt 0:01:06]} 18. Qxb4 {[%emt 0:00:04]} Qxc2 {[%emt 0:00:54]} 19. Nd4 {[%emt 0:00:14]} Qc5 {[%emt 0:12:28]} 20. Qxc5 dxc5 {[%emt 0:00:04]} 21. Nb3 {[%emt 0:04:37]} Nd7 {[%emt 0:00:47]} 22. Re1 {[%emt 0:14:48]} Kf8 {[%emt 0:03:50]} 23. Re2 {[%emt 0:01:18]} Be5 {[%emt 0:07:41]} 24. Nxc5 {[%emt 0:02:47]} Nxc5 {[%emt 0:00:27]} 25. Rxe5 {[%emt 0:00:08]} f6 {[%emt 0:00:30]} 26. Bh6+ {[%emt 0:09:24]} Kf7 {[%emt 0:00:30]} 27. Re1 {[%emt 0:00:31]} g5 {[%emt 0:01:31]} 28. b4 {[%emt 0:00:04]} Nxa4 {[%emt 0:05:16]} 29. Bd3 {[%emt 0:00:23]} Nb6 {[%emt 0:02:46]} 30. f4 {[%emt 0:03:09]} Nxd5 {[%emt 0:05:43]} 31. fxg5 {[%emt 0:00:04]} f5 {[%emt 0:00:51]} 32. Re5 {[%emt 0:05:59]} Nxb4 {[%emt 0:01:21]} 33. Be2 {[%emt 0:00:48]} Kg6 {[%emt 0:02:53]} 34. h4 {[%emt 0:00:03]} e6 {[%emt 0:01:31]} 35. h5+ {[%emt 0:02:06]} Kf7 {[%emt 0:00:04]} 36. Bc4 {[%emt 0:04:50]} Nd5 {[%emt 0:01:23]} 37. Bxd5 {[%emt 0:00:56]} Rd8 {[%emt 0:01:14]} 38. Bf3 {[%emt 0:00:40]} Bd7 {[%emt 0:00:47]} 39. Rc5 {[%emt 0:00:13]} Be8 {[%emt 0:00:32]} 40. Rc7+ {[%emt 0:00:29]} Rd7 {[%emt 0:00:05]} 41. Rc8 {[%emt 0:30:04]} Re7 {[%emt 0:30:19]} 42. g6+ {[%emt 0:00:28]} hxg6 {[%emt 0:00:13]} 43. Bg5 {[%emt 0:00:04]} Bd7 {[%emt 0:00:27]} 44. Rc7 {[%emt 0:00:12]} 1-0

[Event "Czech-ch U18-20 Open 2022"]
[Site "Spindleruv Mlyn"]
[Date "2022.03.14"]
[Round "5.1"]
[White "Vojta, Jakub"]
[Black "Mica, Marek"]
[Result "0-1"]
[ECO "D11"]
[WhiteElo "2406"]
[BlackElo "2272"]
[Annotator "ChessBase"]
[PlyCount "94"]
[EventDate "2022.03.10"]
[EventType "tourn"]
[EventCountry "CZE"]
[SourceTitle "playchess.com"]
[Source "ChessBase"]
[SourceQuality "1"]
[TimeControl "40/5400+30:1800+30"]

1. Nf3 {[%emt 0:00:03]} d5 {[%emt 0:00:07]} 2. g3 {[%emt 0:00:18]} c6 {[%emt 0:00:11]} 3. Bg2 {[%emt 0:00:27]} Bg4 {[%emt 0:00:05]} 4. c4 {[%emt 0:03:03]} e6 {[%emt 0:00:24]} 5. O-O {[%emt 0:02:44]} Nf6 {[%emt 0:00:14]} 6. d3 {[%emt 0:05:32]} Nbd7 {[%emt 0:00:49]} 7. b3 {[%emt 0:00:44]} Bd6 {[%emt 0:03:14]} 8. Bb2 {[%emt 0:00:15]} O-O {[%emt 0:00:52]} 9. d4 {[%emt 0:05:08]} Bf5 {[%emt 0:08:34]} 10. Nbd2 {[%emt 0:05:46]} h6 {[%emt 0:00:37]} 11. a3 {[%emt 0:07:37]} b5 {[%emt 0:05:33]} 12. Ne5 {[%emt 0:07:28]} bxc4 {[%emt 0:18:09]} 13. Nxd7 {[%emt 0:06:43]} Qxd7 {[%emt 0:00:16]} 14. bxc4 {[%emt 0:00:04]} Rab8 {[%emt 0:00:52]} 15. Bc3 {[%emt 0:00:17]} Rfd8 {[%emt 0:02:53]} 16. Qa4 {[%emt 0:01:45]} Bc7 {[%emt 0:03:21]} 17. Rac1 {[%emt 0:06:32]} Bb6 {[%emt 0:01:41]} 18. Nf3 {[%emt 0:05:13]} c5 {[%emt 0:08:43]} 19. Qxd7 {[%emt 0:01:03]} Rxd7 {[%emt 0:00:07]} 20. Ne5 {[%emt 0:06:02]} Rc7 {[%emt 0:09:38]} 21. cxd5 {[%emt 0:08:29]} exd5 {[%emt 0:07:30]} 22. dxc5 {[%emt 0:00:31]} Rxc5 {[%emt 0:01:18]} 23. Bb4 {[%emt 0:00:53]} Rxc1 {[%emt 0:00:34]} 24. Rxc1 {[%emt 0:00:04]} Re8 {[%emt 0:01:08]} 25. Bd6 {[%emt 0:03:24]} Ng4 {[%emt 0:06:24]} 26. Nxg4 {[%emt 0:01:56]} Bxg4 {[%emt 0:00:47]} 27. Bc5 {[%emt 0:17:27]} Rc8 {[%emt 0:02:05]} 28. Be3 {[%emt 0:00:01]} Bxe3 {[%emt 0:01:09]} 29. Rxc8+ {[%emt 0:00:02]} Bxc8 {[%emt 0:00:10]} 30. fxe3 {[%emt 0:00:02]} Bb7 {[%emt 0:00:12]} 31. Kf2 {[%emt 0:00:19]} Kf8 {[%emt 0:00:06]} 32. Ke1 {[%emt 0:01:06]} Ke7 {[%emt 0:00:51]} 33. Kd2 {[%emt 0:00:04]} Kd6 {[%emt 0:00:09]} 34. Bf3 {[%emt 0:01:41]} Ke5 {[%emt 0:02:36]} 35. Kc3 {[%emt 0:01:09]} a5 {[%emt 0:00:46]} 36. Kd3 {[%emt 0:00:49]} Bc8 {[%emt 0:00:42]} 37. Kc3 {[%emt 0:00:33]} Bd7 {[%emt 0:00:50]} 38. Kd3 {[%emt 0:01:28]} g5 {[%emt 0:03:51]} 39. Kc3 {[%emt 0:02:40]} g4 {[%emt 0:00:15]} 40. Bg2 {[%emt 0:00:13]} Bf5 {[%emt 0:01:21]} 41. Kb3 {[%emt 0:03:20]} Be4 {[%emt 0:02:39]} 42. Bf1 {[%emt 0:00:17]} Bh1 {[%emt 0:00:26]} 43. Ka4 {[%emt 0:04:24]} Ke4 {[%emt 0:00:11]} 44. Kxa5 {[%emt 0:00:09]} Kxe3 {[%emt 0:00:07]} 45. Kb5 {[%emt 0:00:35]} Kf2 {[%emt 0:00:12]} 46. Kc5 {[%emt 0:00:13]} Kxf1 {[%emt 0:00:55]} 47. Kd4 {[%emt 0:00:01]} Kxe2 {[%emt 0:00:18]} 0-1

[Event "Czech-ch U18-20 Open 2022"]
[Site "Spindleruv Mlyn"]
[Date "2022.03.14"]
[Round "5.2"]
[White "Svanda, Ondrej"]
[Black "Mladek, Richard"]
[Result "1/2-1/2"]
[ECO "E05"]
[WhiteElo "2303"]
[BlackElo "2374"]
[Annotator "ChessBase"]
[PlyCount "61"]
[EventDate "2022.03.10"]
[EventType "tourn"]
[EventCountry "CZE"]
[SourceTitle "playchess.com"]
[Source "ChessBase"]
[SourceQuality "1"]
[TimeControl "40/5400+30:1800+30"]

1. Nf3 {[%emt 0:00:04]} d5 {[%emt 0:00:13]} 2. g3 {[%emt 0:00:06]} Nf6 {[%emt 0:00:38]} 3. Bg2 {[%emt 0:00:08]} e6 {[%emt 0:02:21]} 4. c4 {[%emt 0:00:08]} Be7 {[%emt 0:01:01]} 5. O-O {[%emt 0:00:08]} O-O {[%emt 0:00:03]} 6. d4 {[%emt 0:00:06]} dxc4 {[%emt 0:00:32]} 7. Qc2 {[%emt 0:00:05]} a6 {[%emt 0:00:16]} 8. a4 {[%emt 0:00:06]} Bd7 {[%emt 0:00:37]} 9. Qxc4 {[%emt 0:00:07]} Bc6 {[%emt 0:00:04]} 10. Bg5 {[%emt 0:00:05]} Nbd7 {[%emt 0:03:24]} 11. Nc3 {[%emt 0:00:37]} h6 {[%emt 0:02:41]} 12. Bxf6 {[%emt 0:00:02]} Nxf6 {[%emt 0:00:17]} 13. Rfd1 {[%emt 0:00:13]} a5 {[%emt 0:06:23]} 14. Qd3 {[%emt 0:03:51]} Bxf3 {[%emt 0:01:37]} 15. Bxf3 {[%emt 0:00:05]} c6 {[%emt 0:00:08]} 16. e3 {[%emt 0:05:51]} Qb6 {[%emt 0:03:23]} 17. Qc2 {[%emt 0:02:22]} Rfd8 {[%emt 0:02:12]} 18. Rac1 {[%emt 0:01:48]} g6 {[%emt 0:04:02]} 19. Kg2 {[%emt 0:00:06]} Kg7 {[%emt 0:00:32]} 20. h4 {[%emt 0:00:05]} h5 {[%emt 0:02:15]} 21. Ne4 {[%emt 0:21:20]} Nxe4 {[%emt 0:00:15]} 22. Bxe4 {[%emt 0:00:18]} Rd7 {[%emt 0:01:59]} 23. Rd3 {[%emt 0:00:29]} Rad8 {[%emt 0:01:03]} 24. Rcd1 {[%emt 0:01:05]} Qb4 {[%emt 0:15:28]} 25. Bf3 {[%emt 0:10:25]} Qb6 {[%emt 0:00:18]} 26. Rb3 {[%emt 0:00:33]} Qc7 {[%emt 0:01:14]} 27. Rbd3 {[%emt 0:00:02]} Qb6 {[%emt 0:00:11]} 28. Rb3 {[%emt 0:00:04]} Qc7 {[%emt 0:00:03]} 29. Rbd3 {[%emt 0:00:01]} Qb6 {[%emt 0:00:05]} 30. Rb3 {[%emt 0:00:07]} Qc7 {[%emt 0:00:01]} 31. Rbd3 {[%emt 0:00:08]} 1/2-1/2

[Event "Czech-ch U18-20 Open 2022"]
[Site "Spindleruv Mlyn"]
[Date "2022.03.14"]
[Round "5.3"]
[White "Gloser, David"]
[Black "Ocelak, Jakub"]
[Result "1/2-1/2"]
[ECO "C50"]
[WhiteElo "2238"]
[BlackElo "2053"]
[Annotator "ChessBase"]
[PlyCount "63"]
[EventDate "2022.03.10"]
[EventType "tourn"]
[EventCountry "CZE"]
[SourceTitle "playchess.com"]
[Source "ChessBase"]
[SourceQuality "1"]
[TimeControl "40/5400+30:1800+30"]

1. e4 {[%emt 0:00:03]} e5 {[%emt 0:00:22]} 2. Nf3 {[%emt 0:00:16]} Nc6 {[%emt 0:00:05]} 3. Bc4 {[%emt 0:00:09]} Bc5 {[%emt 0:00:05]} 4. d3 {[%emt 0:01:28]} Nf6 {[%emt 0:00:07]} 5. O-O {[%emt 0:00:42]} O-O {[%emt 0:00:07]} 6. Bg5 {[%emt 0:00:40]} h6 {[%emt 0:00:34]} 7. Bh4 {[%emt 0:01:07]} Be7 {[%emt 0:00:21]} 8. Nbd2 {[%emt 0:08:12]} d6 {[%emt 0:04:25]} 9. c3 {[%emt 0:05:35]} Kh8 {[%emt 0:12:19]} 10. b4 {[%emt 0:08:42]} Nh7 {[%emt 0:09:24]} 11. Bxe7 {[%emt 0:02:53]} Nxe7 {[%emt 0:00:56]} 12. d4 {[%emt 0:04:49]} Ng6 {[%emt 0:00:22]} 13. Re1 {[%emt 0:04:35]} Qf6 {[%emt 0:10:28]} 14. h3 {[%emt 0:03:24]} Nf4 {[%emt 0:03:31]} 15. Bf1 {[%emt 0:04:38]} Ng5 {[%emt 0:11:40]} 16. Nxg5 {[%emt 0:02:54]} Qxg5 {[%emt 0:00:08]} 17. Kh2 {[%emt 0:01:03]} Qf6 {[%emt 0:02:51]} 18. Qf3 {[%emt 0:05:44]} Qg5 {[%emt 0:05:13]} 19. Re3 {[%emt 0:05:10]} Be6 {[%emt 0:04:06]} 20. g3 {[%emt 0:03:23]} Ng6 {[%emt 0:00:51]} 21. Qe2 {[%emt 0:01:15]} Qf6 {[%emt 0:03:50]} 22. Nf3 {[%emt 0:01:13]} c6 {[%emt 0:02:45]} 23. Bg2 {[%emt 0:03:36]} Rfd8 {[%emt 0:03:32]} 24. a4 {[%emt 0:02:13]} Qe7 {[%emt 0:05:09]} 25. Qb2 {[%emt 0:00:43]} Qc7 {[%emt 0:01:58]} 26. Rc1 {[%emt 0:02:44]} a5 {[%emt 0:06:09]} 27. Rb1 {[%emt 0:05:40]} axb4 {[%emt 0:01:19]} 28. Qxb4 {[%emt 0:00:12]} Ra7 {[%emt 0:00:10]} 29. Rd3 {[%emt 0:01:51]} Rda8 {[%emt 0:00:35]} 30. dxe5 {[%emt 0:01:23]} dxe5 {[%emt 0:00:21]} 31. a5 {[%emt 0:02:11]} Rxa5 {[%emt 0:04:57]} 32. Qxb7 {[%emt 0:00:06]} 1/2-1/2

[Event "Czech-ch U18-20 Open 2022"]
[Site "Spindleruv Mlyn"]
[Date "2022.03.14"]
[Round "5.5"]
[White "Lajbl, Jan"]
[Black "Hlavina, Matous"]
[Result "1/2-1/2"]
[ECO "C07"]
[WhiteElo "2218"]
[BlackElo "2112"]
[Annotator "ChessBase"]
[PlyCount "125"]
[EventDate "2022.03.10"]
[EventType "tourn"]
[EventCountry "CZE"]
[SourceTitle "playchess.com"]
[Source "ChessBase"]
[SourceQuality "1"]
[TimeControl "40/5400+30:1800+30"]

1. e4 {[%emt 0:07:24]} e6 {[%emt 0:00:07]} 2. d4 {[%emt 0:00:03]} d5 {[%emt 0:00:05]} 3. Nd2 {[%emt 0:00:19]} c5 {[%emt 0:00:10]} 4. Ngf3 {[%emt 0:00:43]} cxd4 {[%emt 0:00:50]} 5. Nxd4 {[%emt 0:01:37]} Nc6 {[%emt 0:00:31]} 6. Bb5 {[%emt 0:00:56]} Bd7 {[%emt 0:00:09]} 7. Nxc6 {[%emt 0:00:17]} bxc6 {[%emt 0:00:08]} 8. Bd3 {[%emt 0:00:05]} Bd6 {[%emt 0:02:01]} 9. Qe2 {[%emt 0:03:47]} Qc7 {[%emt 0:01:49]} 10. Nf3 {[%emt 0:03:37]} dxe4 {[%emt 0:12:29]} 11. Bxe4 {[%emt 0:02:46]} Nf6 {[%emt 0:00:15]} 12. Bd3 {[%emt 0:02:45]} Nd5 {[%emt 0:02:51]} 13. O-O {[%emt 0:05:37]} Rb8 {[%emt 0:04:21]} 14. c4 {[%emt 0:05:40]} Nf4 {[%emt 0:01:32]} 15. Qc2 {[%emt 0:08:42]} c5 {[%emt 0:02:42]} 16. Rd1 {[%emt 0:03:53]} Bc6 {[%emt 0:03:01]} 17. Be4 {[%emt 0:01:44]} Ng6 {[%emt 0:01:15]} 18. b3 {[%emt 0:08:14]} Ne5 {[%emt 0:04:37]} 19. Bxc6+ {[%emt 0:06:59]} Qxc6 {[%emt 0:01:50]} 20. Ng5 {[%emt 0:03:52]} Ng4 {[%emt 0:06:07]} 21. h3 {[%emt 0:08:43]} Bh2+ {[%emt 0:06:06]} 22. Kh1 {[%emt 0:06:46]} Be5 {[%emt 0:00:25]} 23. Bb2 {[%emt 0:03:59]} Bxb2 {[%emt 0:01:10]} 24. Qxb2 {[%emt 0:00:09]} Nf6 {[%emt 0:00:16]} 25. Qe5 {[%emt 0:00:57]} O-O {[%emt 0:01:23]} 26. Rd6 {[%emt 0:00:56]} Qb7 {[%emt 0:03:01]} 27. Re1 {[%emt 0:04:37]} Rbc8 {[%emt 0:02:24]} 28. Rd3 {[%emt 0:04:50]} Qc7 {[%emt 0:01:21]} 29. Qe3 {[%emt 0:01:24]} Rfd8 {[%emt 0:01:41]} 30. Red1 {[%emt 0:00:26]} h6 {[%emt 0:02:37]} 31. Nf3 {[%emt 0:00:10]} Rxd3 {[%emt 0:01:45]} 32. Qxd3 {[%emt 0:00:07]} Qf4 {[%emt 0:01:20]} 33. Kg1 {[%emt 0:00:53]} Kf8 {[%emt 0:01:41]} 34. g3 {[%emt 0:02:01]} Qc7 {[%emt 0:01:15]} 35. Qe3 {[%emt 0:00:06]} Nd7 {[%emt 0:03:26]} 36. Qe4 {[%emt 0:01:46]} Nf6 {[%emt 0:03:20]} 37. Qe3 {[%emt 0:00:04]} Nd7 {[%emt 0:00:12]} 38. Kg2 {[%emt 0:00:03]} Qc6 {[%emt 0:00:58]} 39. Kh2 {[%emt 0:01:51]} Qc7 {[%emt 0:00:19]} 40. Qc3 {[%emt 0:00:08]} Nf6 {[%emt 0:01:13]} 41. Qe3 {[%emt 0:05:55]} Nd7 {[%emt 0:00:29]} 42. Nd2 {[%emt 0:00:31]} Nf6 {[%emt 0:01:05]} 43. Nb1 {[%emt 0:01:03]} a6 {[%emt 0:00:42]} 44. Nc3 {[%emt 0:00:13]} Qc6 {[%emt 0:01:32]} 45. Na4 {[%emt 0:03:28]} Ke7 {[%emt 0:01:01]} 46. f3 {[%emt 0:00:59]} Qc7 {[%emt 0:01:51]} 47. Kg2 {[%emt 0:04:43]} Nh5 {[%emt 0:01:17]} 48. Qe1 {[%emt 0:05:51]} Nf6 {[%emt 0:01:01]} 49. Rd3 {[%emt 0:00:40]} Nh5 {[%emt 0:01:19]} 50. Rd2 {[%emt 0:00:43]} Nf6 {[%emt 0:00:35]} 51. Re2 {[%emt 0:00:40]} Kf8 {[%emt 0:02:03]} 52. Rd2 {[%emt 0:01:02]} Ke7 {[%emt 0:00:51]} 53. a3 {[%emt 0:01:14]} Qc6 {[%emt 0:01:31]} 54. Qe3 {[%emt 0:00:40]} Rc7 {[%emt 0:01:33]} 55. Qe5 {[%emt 0:00:50]} Rc8 {[%emt 0:01:00]} 56. Nc3 {[%emt 0:01:13]} Qc7 {[%emt 0:00:43]} 57. Qe3 {[%emt 0:01:07]} Qc6 {[%emt 0:00:59]} 58. Nd5+ {[%emt 0:01:30]} Nxd5 {[%emt 0:00:43]} 59. cxd5 {[%emt 0:00:06]} Qd6 {[%emt 0:01:06]} 60. dxe6 {[%emt 0:02:18]} Qxe6 {[%emt 0:00:34]} 61. Qd3 {[%emt 0:00:45]} Kf8 {[%emt 0:03:47]} 62. Re2 {[%emt 0:00:14]} c4 {[%emt 0:03:08]} 63. Qd1 {[%emt 0:07:19]} 1/2-1/2